bitfinex/quotes_ETHUSD_20240819
["timestamp","ask_amount","ask_price","bid_price","bid_amount"]
[1724084896858,2.11810591,2589.2,2589.1,7.934834]
[1724084897011,2.11810591,2589.2,2589.1,3.0]
[1724084897211,2.11810591,2589.2,2589.0,3.0]
[1724084897554,3.86234,2589.1,2588.9,3.0]
[1724084897866,3.90098556,2589.0,2588.6,2.298]
[1724084898027,5.51460938,2589.0,2588.6,0.616098]
[1724084898229,1.61362382,2588.9,2588.4,2.298]
[1724084898412,1.61362382,2588.8,2588.4,10.02468]
[1724084898720,0.03840632,2588.7,2588.5,3.86322]
[1724084898925,0.03840632,2588.7,2588.5,4.865673]
[1724084899127,1.61362382,2588.8,2588.5,1.002453]
[1724084899443,1.61362382,2588.8,2588.5,3.86324]
[1724084899622,0.03839312,2588.7,2588.5,3.86324]
[1724084899834,1.61362382,2588.7,2588.5,3.86324]
[1724084900035,0.03839312,2588.6,2588.5,3.86324]
[1724084900342,0.03839312,2588.6,2588.5,3.86215754]
[1724084900740,0.03839312,2588.6,2588.2,2.2833]
[1724084900741,0.03839312,2588.6,2588.4,3.86338]
[1724084900916,3.86345,2588.4,2587.9,3.86405]
[1724084901366,0.03817517,2588.3,2587.9,3.86405]
[1724084901716,0.03817517,2588.3,2588.0,3.86393]
[1724084901922,5.47696382,2588.5,2588.0,3.86393]
[1724084902124,0.03772609,2588.2,2588.0,3.86393]
[1724084902346,5.47696382,2588.5,2588.1,3.0]
[1724084902652,1.61362382,2588.6,2588.4,3.86339]
[1724084902854,1.61362382,2588.7,2588.4,3.86339]
[1724084903420,1.61362382,2588.8,2588.4,1.008983]
[1724084903668,1.61362382,2588.9,2588.4,3.0]
[1724084903829,2.01814616,2589.1,2588.8,3.86272]
[1724084903830,1.61362382,2589.0,2588.8,3.86272]
[1724084905325,1.61362382,2589.1,2588.8,3.86272]
[1724084905719,1.61362382,2589.1,2589.0,2.3743]
[1724084906056,2.0794949,2589.2,2589.0,6.23667]
[1724084906231,2.0794949,2589.2,2589.1,3.86234]
[1724084906640,2.0794949,2589.2,2589.1,10.72468]
[1724084906841,2.0794949,2589.2,2589.1,11.27468]
[1724084907461,2.0794949,2589.2,2589.1,13.025839]
[1724084908234,2.0794949,2589.2,2589.1,6.86234]
[1724084912261,2.0794949,2589.2,2589.1,10.72468]
[1724084912469,2.0794949,2589.2,2589.1,11.27468]
[1724084913170,2.0794949,2589.2,2589.1,10.72468]
[1724084913721,2.11763047,2589.2,2589.1,10.72468]
[1724084913964,2.11763047,2589.2,2589.1,12.034578]
[1724084914117,2.0794949,2589.2,2589.1,12.034578]
[1724084914972,2.0794949,2589.2,2589.1,6.86234]
[1724084915121,2.0794949,2589.2,2588.9,3.86263]
[1724084915494,2.0794949,2589.2,2589.0,6.86241]
[1724084915495,0.03839312,2589.1,2589.0,6.86241]
[1724084915659,0.03839312,2589.1,2589.0,3.0]
[1724084915973,0.03839312,2589.1,2589.0,6.86249]
[1724084916567,0.03839312,2589.1,2588.9,3.86263]
[1724084917271,0.03839312,2589.1,2588.9,3.86256]
[1724084918571,0.03839312,2589.1,2589.0,3.86249]
[1724084921878,0.03839312,2589.1,2589.0,7.72498]
[1724084922553,0.03839312,2589.1,2589.0,3.86249]
[1724084924048,0.03839312,2589.1,2589.0,7.72498]
[1724084924736,0.03839312,2589.1,2589.0,3.86249]
[1724084925066,0.03839312,2589.1,2589.0,10.72498]
[1724084925273,2.0794949,2589.2,2589.1,3.86234]
[1724084925444,2.11766397,2589.2,2589.1,3.86234]
[1724084925647,2.11766397,2589.2,2589.1,7.72468]
[1724084928271,2.0794949,2589.2,2589.1,8.27468]
[1724084928507,2.1164991,2589.2,2589.1,13.013949]
[1724084930798,2.1164991,2589.2,2589.1,15.471749]
[1724084931380,2.0794949,2589.2,2589.1,19.334089]
[1724084932865,2.0794949,2589.2,2589.1,15.471749]
[1724084933115,2.116585,2589.2,2589.1,13.73248]
[1724084934968,2.0794949,2589.2,2589.1,13.73248]
[1724084935168,2.116585,2589.2,2589.1,13.73248]
[1724084938059,2.0794949,2589.2,2589.1,13.73248]
[1724084938407,2.0794949,2589.2,2589.1,17.59482]
[1724084938605,2.0794949,2589.2,2589.1,24.006591]
[1724084939230,2.0794949,2589.2,2589.1,20.144251]
[1724084940262,2.0794949,2589.2,2589.1,16.281911]
[1724084942429,2.0794949,2589.2,2589.1,16.281911]
[1724084942752,2.11724565,2589.2,2589.1,16.281911]
[1724084943116,2.0794949,2589.2,2589.1,16.281911]
[1724084943310,2.0794949,2589.2,2589.1,17.959911]
[1724084944052,2.0794949,2589.2,2589.1,16.281911]
[1724084944348,2.0794949,2589.2,2589.1,21.822251]
[1724084945073,2.0794949,2589.2,2589.1,25.684591]
[1724084945625,2.0794949,2589.2,2589.1,21.822251]
[1724084945824,2.0794949,2589.2,2589.1,25.684591]
[1724084946249,2.0794949,2589.2,2589.1,56.822251]
[1724084946456,2.4987539,2589.2,2589.1,55.144251]
[1724084946657,2.4987539,2589.2,2589.1,59.006591]
[1724084949930,2.4987539,2589.2,2589.1,24.006591]
[1724084950454,2.4987539,2589.2,2589.1,59.006591]
[1724084952857,1.61362382,2590.3,2589.9,2.4101]
[1724084953032,1.61362382,2590.5,2590.0,0.55]
[1724084953228,0.03806117,2590.2,2590.1,7.72163]
[1724084953472,1.61362382,2590.6,2590.4,3.86039]
[1724084953768,1.61362382,2590.6,2590.1,3.55]
[1724084953967,1.61362382,2590.5,2590.4,3.86038]
[1724084954173,1.61362382,2590.6,2590.4,3.86038]
[1724084954327,0.03806117,2590.5,2590.4,3.86038]
[1724084955834,0.03806117,2590.5,2590.2,3.86061]
[1724084956034,1.61362382,2590.6,2590.2,7.72124]
[1724084956259,0.03806117,2590.4,2590.2,3.86061]
[1724084956573,0.03806117,2590.3,2590.2,3.86061]
[1724084956935,1.61362382,2590.6,2590.2,3.86061]
[1724084957137,0.03806117,2590.3,2590.2,3.86061]
[1724084957445,1.61362382,2590.6,2590.2,3.86061]
[1724084957648,0.03806117,2590.3,2590.2,3.86061]
[1724084957851,3.86026,2590.5,2590.1,6.86083]
[1724084958174,2.4488,2590.3,2590.1,3.0]
[1724084958547,0.03830549,2590.2,2590.0,3.0]
[1724084958871,2.4488,2590.3,2590.0,3.0]
[1724084959080,0.03830549,2590.1,2590.0,3.0]
[1724084959405,2.4488,2590.3,2590.0,6.861]
[1724084959538,0.03830549,2590.1,2590.0,6.861]
[1724084959738,2.4488,2590.3,2590.0,6.861]
[1724084959961,0.03830549,2590.1,2590.0,6.861]
[1724084960231,2.4488,2590.3,2590.0,6.861]
[1724084960431,0.03822626,2590.1,2590.0,6.861]
[1724084960636,2.4488,2590.3,2590.0,6.861]
[1724084960873,0.03822626,2590.1,2590.0,6.861]
[1724084961040,6.33679,2590.4,2590.0,6.861]
[1724084961240,0.03822626,2590.1,2590.0,6.861]
[1724084961471,6.33679,2590.4,2590.0,6.861]
[1724084961785,2.4763,2590.4,2590.0,3.0]
[1724084961993,0.03822626,2590.3,2590.0,6.86093]
[1724084962141,0.03822626,2590.3,2590.0,3.0]
[1724084962475,1.65185008,2590.3,2590.0,3.0]
[1724084962678,1.65185008,2590.3,2589.6,2.4101]
[1724084962679,0.03822626,2590.3,2589.6,2.4101]
[1724084962975,3.86093,2590.1,2589.7,3.86144]
[1724084963361,3.86093,2590.1,2589.3,2.4357]
[1724084963362,0.03822626,2590.0,2589.8,3.86122]
[1724084963566,2.4425,2590.2,2589.8,3.86119]
[1724084963764,2.4425,2590.2,2590.0,3.86099]
[1724084964539,3.93772382,2590.4,2590.0,7.72186]
[1724084964739,3.93772382,2590.4,2590.1,3.86078]
[1724084965566,3.93772382,2590.4,2590.0,3.86098]
[1724084965737,5.47403382,2590.4,2590.0,3.86098]
[1724084966100,2.2627,2590.3,2590.0,3.86098]
[1724084966237,2.2627,2590.3,2589.9,3.86113]
[1724084966238,6.1233,2590.3,2589.9,3.86113]
[1724084966781,1.61362382,2590.4,2590.0,3.8609]
[1724084969370,0.03837156,2590.3,2590.0,3.8609]
[1724084969564,1.65199538,2590.3,2590.0,3.8609]
[1724084969751,1.65199538,2590.3,2589.9,3.86114]
[1724084969752,0.03837156,2590.3,2590.1,3.86078]
[1724084969972,0.03837156,2590.3,2590.1,4.632961]
[1724084970480,4.04832382,2590.5,2590.1,4.632961]
[1724084970680,0.03837156,2590.2,2590.1,4.632961]
[1724084970882,1.61362382,2590.5,2590.1,4.632961]
[1724084971192,1.61362382,2590.5,2590.2,4.3239261]
[1724084972045,1.61362382,2590.5,2590.2,0.4632961]
[1724084972386,1.61362382,2590.5,2590.1,3.86083]
[1724084972946,1.61362382,2590.5,2590.2,3.86058]
[1724084974054,1.61362382,2590.5,2590.3,3.86055]
[1724084975453,1.61362382,2590.5,2590.2,3.86069]
[1724084976253,1.61362382,2590.5,2590.3,3.86045]
[1724084977655,1.61362382,2590.5,2590.2,4.632842]
[1724084977896,1.61362382,2590.5,2590.0,3.86088]
[1724084977897,1.61362382,2590.5,2590.1,3.86083]
[1724084978065,1.677,2590.4,2590.1,3.86083]
[1724084978485,3.29062382,2590.4,2590.1,3.86083]
[1724084979188,7.15104382,2590.4,2590.0,3.86097]
[1724084979394,5.77692382,2590.4,2590.1,3.0]
[1724084979750,9.63733382,2590.4,2590.1,3.0]
[1724084980170,1.61362382,2590.8,2590.4,6.33583127]
[1724084980395,2.82798026,2591.4,2591.2,3.85921]
[1724084980396,1.61362382,2591.4,2591.2,3.85921]
[1724084980559,1.61362382,2591.5,2591.1,3.85927]
[1724084980753,0.36336097,2591.4,2591.1,3.85927]
[1724084980995,1.61362382,2591.4,2591.1,7.71855]
[1724084981196,1.61362382,2591.5,2591.1,3.85927]
[1724084981692,1.61362382,2591.5,2591.0,3.85949]
[1724084981996,1.677,2591.4,2591.1,3.0]
[1724084982299,1.677,2591.2,2591.0,3.0]
[1724084982471,3.86942382,2591.3,2591.0,3.0]
[1724084982811,2.2558,2591.3,2591.0,6.85947]
[1724084983011,3.86942382,2591.3,2591.0,6.85947]
[1724084983159,2.2558,2591.3,2591.0,6.85947]
[1724084983499,3.86942382,2591.3,2591.0,3.0]
[1724084983705,2.2558,2591.3,2591.0,6.85946]
[1724084983857,2.2558,2591.3,2591.1,3.85929]
[1724084984611,0.03755113,2591.2,2591.1,3.85929]
[1724084984794,2.2558,2591.3,2591.1,6.85929]
[1724084984978,0.03755113,2591.2,2591.1,3.85929]
[1724084985317,2.2558,2591.3,2591.1,6.85929]
[1724084985466,0.03755113,2591.2,2591.1,3.85929]
[1724084985666,0.03755113,2591.2,2591.1,11.790525]
[1724084986008,1.61362382,2591.6,2591.4,3.85883]
[1724084986220,1.61362382,2591.7,2591.4,3.85883]
[1724084986983,1.61362382,2591.7,2591.3,3.85898]
[1724084986984,2.62266188,2591.7,2591.3,3.85898]
[1724084987191,2.4425,2591.6,2591.3,3.85898]
[1724084987778,4.05612382,2591.6,2591.2,3.8592]
[1724084988101,4.5340428,2591.6,2591.2,3.8592]
[1724084989815,8.3926628,2591.6,2591.2,3.8592]
[1724084990428,8.3926628,2591.6,2591.2,3.85914]
[1724084990628,4.5340428,2591.6,2591.3,3.85906]
[1724084990797,4.5340428,2591.6,2591.2,3.85913]
[1724084990979,4.5340428,2591.6,2591.3,3.85904]
[1724084991183,2.92041898,2591.6,2591.3,3.85904]
[1724084995223,4.5340428,2591.6,2591.3,3.85904]
[1724084995418,2.92041898,2591.6,2591.3,3.85904]
[1724084995922,0.47791898,2591.6,2591.3,3.85904]
[1724084998936,0.59500328,2591.5,2591.1,6.85934]
[1724084999146,0.59500328,2591.5,2591.1,3.0]
[1724084999147,2.85880328,2591.5,2591.1,3.0]
[1724084999442,3.89717133,2591.4,2591.1,3.0]
[1724084999685,3.85928,2591.2,2590.7,3.85995]
[1724084999847,2.3387,2591.1,2590.8,6.8598]
[1724085000381,6.19817,2591.1,2590.8,3.0]
[1724085000526,3.85951,2591.0,2590.6,3.86003]
[1724085000725,3.85951,2591.0,2590.7,3.0]
[1724085000925,2.3387,2591.1,2590.7,6.85995]
[1724085001440,2.81661898,2591.1,2590.7,3.0]
[1724085001622,3.85958,2591.0,2590.5,6.86025]
[1724085001824,3.85958,2591.0,2590.4,3.8603]
[1724085001825,3.85981,2590.8,2590.4,3.8603]
[1724085002146,3.85966,2590.9,2590.4,3.8603]
[1724085002475,6.29852,2590.8,2590.2,3.86067]
[1724085002637,6.29852,2590.8,2590.2,7.72126]
[1724085002838,6.29852,2590.8,2590.1,2.4646]
[1724085002839,10.15842,2590.8,2590.3,3.86054]
[1724085003171,6.71255478,2590.8,2590.3,3.86054]
[1724085003335,6.71255478,2590.8,2590.3,3.86047]
[1724085003542,6.71255478,2590.8,2590.4,3.0]
[1724085004341,10.57245478,2590.8,2590.4,3.0]
[1724085005060,3.85996,2590.7,2590.2,3.8607]
[1724085005467,3.86011,2590.6,2590.1,2.4646]
[1724085005638,2.4387,2590.3,2589.8,2.4646]
[1724085005839,3.8607,2590.2,2589.8,2.4646]
[1724085006077,1.61362382,2590.6,2589.8,2.4646]
[1724085006078,4.05232382,2590.6,2589.8,2.4646]
[1724085006280,3.44773806,2590.6,2590.1,3.86072]
[1724085006482,3.44773806,2590.6,2590.0,3.86098]
[1724085006645,1.00903806,2590.6,2590.0,3.86098]
[1724085006982,7.86453382,2590.8,2590.2,6.35929]
[1724085007182,2.01636459,2590.9,2590.7,3.85995]
[1724085007183,1.61362382,2590.9,2590.7,3.85995]
[1724085007341,4.00472382,2591.0,2590.7,3.85995]
[1724085007678,4.00472382,2591.0,2590.2,6.35928]
[1724085007679,2.3911,2591.0,2590.6,3.8601]
[1724085008041,6.25061,2591.0,2590.6,3.8601]
[1724085008241,7.86423382,2591.0,2590.6,3.8601]
[1724085008435,3.85973,2590.9,2590.2,2.4986]
[1724085008785,3.85988,2590.8,2590.3,3.86054]
[1724085009140,3.85988,2590.8,2590.3,7.72096]
[1724085009980,3.85988,2590.8,2590.4,3.86038]
[1724085010276,1.61362382,2590.9,2590.5,3.86012]
[1724085010582,1.61362382,2591.0,2590.6,6.33053]
[1724085011009,1.61362382,2591.1,2590.7,6.85985]
[1724085011178,2.01664483,2591.2,2590.9,3.85963]
[1724085011179,1.61362382,2591.2,2590.9,3.85963]
[1724085011502,1.61362382,2591.3,2590.9,3.85963]
[1724085011670,5.47269382,2591.3,2590.9,3.85963]
[1724085011865,5.47269382,2591.3,2590.8,3.8598]
[1724085012292,6.15332,2591.2,2590.7,3.0]
[1724085012492,3.85967,2590.9,2590.7,3.0]
[1724085012698,3.85967,2590.9,2590.4,5.4604]
[1724085012893,3.85982,2590.8,2590.4,5.4604]
[1724085013093,7.71977,2590.8,2590.4,3.0]
[1724085013299,3.86011,2590.6,2590.2,2.4873]
[1724085013504,3.86047,2590.4,2589.9,2.4873]
[1724085013706,5.47378382,2590.6,2590.0,3.86092]
[1724085013707,3.86025,2590.5,2590.0,3.86092]
[1724085013866,3.86041,2590.4,2590.0,3.86092]
[1724085014070,5.47387382,2590.5,2590.0,3.86092]
[1724085015085,3.86048,2590.4,2589.9,6.34836]
[1724085015299,5.47387382,2590.5,2590.0,3.86099]
[1724085015497,3.86025,2590.5,2590.0,7.72191]
[1724085015681,5.47373382,2590.6,2590.1,3.86077]
[1724085016004,5.47366382,2590.7,2590.2,6.27983]
[1724085017341,3.89709191,2590.6,2590.2,2.4192]
[1724085017619,3.86041,2590.4,2589.9,3.86103]
[1724085017806,5.47403382,2590.4,2590.0,3.0]
[1724085017982,0.0366977,2590.3,2590.0,3.0]
[1724085018185,0.0366977,2590.3,2589.9,3.0]
[1724085018830,0.0366977,2590.3,2589.9,6.86114]
[1724085019127,0.0366977,2590.3,2589.9,7.793584]
[1724085019725,0.0366977,2590.3,2590.2,2.4275]
[1724085019924,0.0366977,2590.3,2590.0,6.15162]
[1724085020140,5.47389382,2590.5,2590.0,6.15162]
[1724085020463,1.61362382,2590.5,2590.0,7.5461064]
[1724085020637,0.03661176,2590.4,2590.2,3.86063]
[1724085020837,1.61362382,2590.6,2590.3,3.86055]
[1724085021029,0.03661176,2590.5,2590.3,3.86055]
[1724085021452,0.03661176,2590.5,2590.2,7.72126]
[1724085021624,0.03661176,2590.5,2590.2,3.86063]
[1724085021829,0.03661176,2590.5,2590.2,7.72126]
[1724085022160,0.03661176,2590.5,2590.4,10.1978]
[1724085022318,0.03661176,2590.5,2590.4,13.1978]
[1724085022662,1.61362382,2591.0,2590.7,3.85982]
[1724085022826,0.0366316,2590.9,2590.7,3.85982]
[1724085023158,1.61362382,2591.1,2590.7,3.85982]
[1724085023665,1.61362382,2591.1,2590.6,3.86006]
[1724085023666,1.65025542,2591.0,2590.6,3.8601]
[1724085023959,5.50983542,2591.0,2590.5,3.86022]
[1724085024121,3.85967,2590.9,2590.5,3.86022]
[1724085024332,3.85967,2590.9,2590.4,9.3373]
[1724085024661,0.0366316,2590.8,2590.4,9.3373]
[1724085025226,3.8964716,2590.8,2590.4,9.3373]
[1724085028259,3.85999,2590.7,2590.4,5.477]
[1724085028418,0.0364994,2590.6,2590.4,5.477]
[1724085029258,3.8966794,2590.6,2590.4,3.0]
[1724085029561,4.28634734,2590.6,2590.1,6.86079]
[1724085029726,3.8966794,2590.6,2590.1,6.86079]
[1724085030555,0.0364994,2590.6,2590.2,3.86067]
[1724085030886,0.0364994,2590.6,2590.4,6.32438]
[1724085031079,0.0364994,2590.6,2590.5,10.7205]
[1724085031256,7.36,2591.1,2590.7,3.85982]
[1724085031257,8.97362382,2591.1,2590.7,3.85982]
[1724085031445,8.97362382,2591.1,2590.6,3.86006]
[1724085031446,0.0364994,2591.0,2590.6,3.86006]
[1724085031641,0.0364994,2591.0,2590.7,3.0]
[1724085031846,0.0364994,2591.0,2590.8,3.8598]
[1724085032886,0.0364994,2591.0,2590.7,6.85995]
[1724085033102,0.0364994,2591.0,2590.7,10.71983]
[1724085033240,0.0364994,2591.0,2590.9,3.85966]
[1724085033445,0.0364994,2591.0,2590.9,6.20206]
[1724085034768,0.0364994,2591.0,2590.9,2.3424]
[1724085034971,0.0364994,2591.0,2590.7,3.0]
[1724085035270,1.65012322,2591.0,2590.5,3.86019]
[1724085035471,5.47329382,2590.9,2590.6,3.0]
[1724085035982,1.61362382,2590.9,2590.6,3.0]
[1724085036172,0.0364994,2590.8,2590.6,3.86]
[1724085036602,1.61362382,2591.0,2590.8,3.85972]
[1724085036774,2.01960607,2591.1,2590.8,3.85972]
[1724085036775,1.61362382,2591.1,2590.8,3.85972]
[1724085037362,1.61362382,2591.0,2590.8,3.85972]
[1724085037900,1.61362382,2591.0,2590.7,6.32763]
[1724085038217,3.85989,2590.8,2590.3,9.31392]
[1724085038383,3.85989,2590.8,2590.4,3.86031]
[1724085038714,3.85989,2590.8,2590.5,3.0]
[1724085038715,3.85996,2590.7,2590.5,3.0]
[1724085038925,3.85996,2590.7,2590.4,3.0]
[1724085039233,5.47344382,2590.8,2590.4,3.0]
[1724085039522,3.86018,2590.6,2590.4,3.0]
[1724085039665,3.86025,2590.5,2590.3,3.0]
[1724085040024,5.47387382,2590.5,2590.1,2.4535]
[1724085040422,3.86041,2590.4,2590.1,2.4535]
[1724085040912,5.47388382,2590.5,2590.1,2.4535]
[1724085041104,5.47388382,2590.5,2590.1,5.4535]
[1724085041603,1.61362382,2590.5,2590.2,3.86063]
[1724085041810,1.61362382,2590.5,2590.2,3.86068]
[1724085042026,9.33395382,2590.6,2590.1,10.982781]
[1724085042168,7.72403382,2590.6,2590.1,3.0]
[1724085042362,1.61362382,2590.5,2590.0,6.86087]
[1724085042561,5.47373382,2590.6,2590.1,3.86078]
[1724085042807,0.03669906,2590.4,2590.2,6.86064]
[1724085043012,5.47373382,2590.6,2590.2,3.0]
[1724085043210,0.03669906,2590.3,2590.2,3.0]
[1724085043412,5.47388382,2590.5,2590.2,3.0]
[1724085043413,1.61362382,2590.5,2590.2,3.0]
[1724085043869,0.03671889,2590.4,2590.2,3.0]
[1724085044497,1.65034271,2590.4,2590.2,3.0]
[1724085044698,0.03671889,2590.4,2590.2,3.0]
[1724085044903,1.65034271,2590.4,2590.2,3.0]
[1724085045415,0.03671889,2590.4,2590.3,3.166277]
[1724085045610,0.03671889,2590.4,2590.3,2.4802]
[1724085045824,1.65034271,2590.4,2590.3,2.4802]
[1724085045982,0.03671889,2590.4,2590.3,2.4802]
[1724085046609,0.03671889,2590.4,2590.2,6.86062]
[1724085046928,0.03671889,2590.4,2590.2,10.72125]
[1724085047276,0.03671889,2590.4,2590.2,6.86062]
[1724085047472,1.65034271,2590.4,2590.2,6.86062]
[1724085047671,0.03671889,2590.4,2590.2,6.86062]
[1724085047979,3.86092,2590.1,2589.9,7.37]
[1724085048384,3.86092,2590.1,2589.5,6.29436]
[1724085048385,3.89749435,2590.0,2589.5,6.29436]
[1724085048711,5.51504304,2590.0,2589.5,6.29436]
[1724085048926,1.65402304,2590.0,2589.6,3.86157]
[1724085049067,0.03647435,2590.0,2589.8,3.86123]
[1724085049576,0.03647435,2590.0,2589.9,2.4994]
[1724085049813,0.03647435,2590.0,2589.9,6.36055]
[1724085049971,1.61754869,2590.2,2589.9,6.36055]
[1724085050172,0.03625619,2590.0,2589.9,6.36055]
[1724085050371,1.61754869,2590.2,2589.9,7.4456767]
[1724085050571,0.03625619,2590.0,2589.9,3.5845267]
[1724085050879,0.03625619,2590.0,2589.9,6.36053]
[1724085051094,1.61754869,2590.3,2590.0,3.86094]
[1724085051621,1.61754869,2590.3,2589.7,0.629427]
[1724085051622,8.97754869,2590.5,2590.2,6.1494]
[1724085051908,1.61754869,2590.6,2590.2,2.2887]
[1724085052116,1.61754869,2590.5,2590.2,2.2887]
[1724085052414,5.47783869,2590.5,2590.2,2.2887]
[1724085053607,3.86041,2590.4,2590.2,2.2887]
[1724085053798,5.47795869,2590.4,2590.0,5.4424]
[1724085054325,3.86078,2590.2,2590.0,3.0]
[1724085054471,1.61754869,2590.3,2589.8,2.4424]
[1724085054674,1.61754869,2590.3,2589.8,5.4424]
[1724085054912,1.61754869,2590.3,2589.8,9.30359]
[1724085054913,1.61754869,2590.2,2589.8,9.30359]
[1724085055119,5.47824869,2590.2,2589.8,9.30359]
[1724085055487,1.61754869,2590.2,2589.8,13.1648]
[1724085055811,1.61754869,2590.2,2589.9,6.35182]
[1724085056018,1.61754869,2590.3,2589.9,6.35182]
[1724085056204,1.61754869,2590.3,2590.1,3.86084]
[1724085056401,1.61754869,2590.4,2590.1,3.86084]
[1724085056610,1.61754869,2590.5,2590.3,3.8605]
[1724085056914,1.61754869,2590.6,2590.2,9.737474]
[1724085057116,1.61754869,2590.5,2590.2,9.35133]
[1724085057778,0.03632231,2590.4,2590.2,9.35133]
[1724085058232,0.03632231,2590.4,2590.2,5.4907]
[1724085058580,0.03632231,2590.4,2590.2,2.4907]
[1724085060230,0.03632231,2590.4,2590.2,6.35137]
[1724085060400,0.03632231,2590.4,2590.3,1.32122]
[1724085060614,0.03632231,2590.4,2590.2,6.35137]
[1724085061432,0.03632231,2590.4,2590.2,2.4907]
[1724085061788,1.653871,2590.4,2590.2,2.4907]
[1724085062133,0.03632231,2590.4,2590.1,3.0]
[1724085062340,1.653871,2590.4,2590.1,3.0]
[1724085063944,5.514271,2590.4,2590.1,3.0]
[1724085064297,1.653871,2590.4,2590.1,6.86079]
[1724085064493,0.03632231,2590.4,2590.1,6.86079]
[1724085064698,1.653871,2590.4,2590.2,3.86069]
[1724085064937,0.03632231,2590.4,2590.3,6.30445]
[1724085065593,1.61754869,2590.6,2590.3,9.30445]
[1724085065791,1.61754869,2590.6,2590.5,3.86025]
[1724085066155,1.61754869,2590.7,2590.6,3.8601]
[1724085067499,1.61754869,2590.7,2590.5,6.86023]
[1724085067711,1.61754869,2590.7,2590.5,3.0]
[1724085067928,1.61754869,2590.7,2590.4,3.0]
[1724085068433,1.61754869,2590.7,2590.4,6.86039]
[1724085069052,1.61754869,2590.7,2590.4,6.86032]
[1724085069337,2.02039368,2590.8,2590.4,6.86032]
[1724085069338,1.61754869,2590.8,2590.7,3.85993]
[1724085069503,2.02039368,2591.0,2590.7,3.85993]
[1724085069504,1.61754869,2591.0,2590.8,7.71962]
[1724085069704,1.61754869,2591.0,2590.9,2.36]
[1724085070211,1.61754869,2591.0,2590.9,6.21966]
[1724085070845,1.61754869,2591.0,2590.9,6.88276497]
[1724085071000,1.61754869,2591.1,2591.0,3.85951]
[1724085071223,1.61754869,2591.1,2591.0,3.0]
[1724085071946,1.61754869,2591.2,2591.0,3.0]
[1724085072260,1.61754869,2591.1,2591.0,3.0]
[1724085072447,2.02098896,2591.3,2591.0,3.0]
[1724085072448,1.61754869,2591.2,2591.0,6.85951]
[1724085072770,0.0360288,2591.1,2591.0,6.85951]
[1724085072977,0.0360288,2591.1,2591.0,8.167424]
[1724085073269,1.61754869,2591.3,2591.0,8.167424]
[1724085073568,0.03593074,2591.2,2591.0,6.85951]
[1724085073957,1.61754869,2591.3,2591.0,6.85951]
[1724085073958,1.61754869,2591.3,2591.1,3.85929]
[1724085074155,2.02098896,2591.4,2591.1,3.85929]
[1724085074156,1.61754869,2591.4,2591.1,3.85929]
[1724085075871,1.61754869,2591.4,2591.2,2.4342]
[1724085076173,1.61754869,2591.6,2591.4,3.85891]
[1724085076368,1.61754869,2591.7,2591.5,3.85874]
[1724085076569,1.74423759,2591.8,2591.5,3.85874]
[1724085076771,1.74423759,2591.8,2591.5,3.85869]
[1724085076962,1.74423759,2591.8,2591.5,3.85866]
[1724085077478,1.74423759,2591.8,2591.6,2.802666]
[1724085077479,0.1266889,2591.8,2591.6,2.802666]
[1724085077680,0.1266889,2591.8,2591.6,5.802666]
[1724085078033,0.1266889,2591.8,2591.6,5.4168]
[1724085080857,1.61754869,2593.0,2592.6,6.15911]
[1724085081003,1.61754869,2593.2,2592.8,3.85681]
[1724085081365,1.61754869,2593.5,2593.2,3.85623]
[1724085081504,1.61754869,2593.5,2593.0,2.302]
[1724085081505,1.61754869,2593.5,2593.4,7.71188]
[1724085081706,1.61754869,2594.0,2593.6,3.85564]
[1724085081950,1.61754869,2594.0,2593.0,2.302]
[1724085081951,1.61754869,2594.0,2593.2,3.85616]
[1724085082100,5.47269869,2594.0,2593.0,2.302]
[1724085082421,3.85522,2593.9,2593.4,3.85586]
[1724085082856,3.85522,2593.9,2593.2,3.85615]
[1724085082857,3.85535,2593.8,2593.2,7.71225]
[1724085083063,3.85535,2593.8,2593.2,3.8561]
[1724085083264,4.240885,2593.8,2593.2,3.8561]
[1724085083473,4.240885,2593.8,2593.0,2.302]
[1724085083474,3.85595,2593.4,2593.0,2.302]
[1724085084193,7.71148,2593.6,2593.0,6.15853]
[1724085084479,3.85603,2593.4,2593.1,3.0]
[1724085084688,0.8097015,2593.6,2592.9,3.0]
[1724085084835,3.85635,2593.2,2592.8,2.3205]
[1724085085185,3.85604,2593.4,2592.8,2.3205]
[1724085085344,7.71206,2593.4,2592.8,6.17725]
[1724085085528,3.85602,2593.4,2592.8,6.17725]
[1724085085734,3.85625,2593.2,2592.8,2.3205]
[1724085085975,3.85602,2593.4,2592.8,13.03405]
[1724085086172,3.85602,2593.4,2592.8,13.03397]
[1724085086388,3.85602,2593.4,2592.8,5.3205]
[1724085086389,4.627193,2593.4,2592.8,5.3205]
[1724085086532,3.85632,2593.2,2592.8,5.3205]
[1724085086732,3.85632,2593.2,2592.8,2.3205]
[1724085087194,3.85609,2593.3,2592.8,10.03406]
[1724085087336,3.85602,2593.4,2592.8,10.03406]
[1724085087337,0.03970848,2593.1,2592.8,6.17723]
[1724085087536,8.097682,2593.4,2592.8,10.03398]
[1724085087755,0.03970848,2593.0,2592.8,6.17723]
[1724085087959,3.85612,2593.3,2592.8,6.17723]
[1724085088447,0.03968209,2593.2,2592.8,6.17723]
[1724085088657,3.85612,2593.3,2592.8,2.3205]
[1724085088852,3.89599209,2593.2,2592.8,2.3205]
[1724085089677,3.85638,2593.1,2592.8,2.3205]
[1724085089985,3.85638,2593.1,2592.7,3.0]
[1724085090188,0.03968209,2593.0,2592.7,3.0]
[1724085090545,3.85668,2592.9,2592.7,3.0]
[1724085090747,3.85668,2592.9,2592.5,2.3135]
[1724085090748,3.85713,2592.6,2592.2,9.6835]
[1724085091186,0.03967549,2592.5,2592.2,13.54122]
[1724085091545,3.85707,2592.7,2592.2,13.54122]
[1724085091784,0.03967549,2592.4,2592.2,9.6835]